bitfinex-derivatives/quotes_ETHF0:USTF0_20260112
["timestamp","ask_amount","ask_price","bid_price","bid_amount"]
[1768215241291,0.89001555,3107.8,3107.1,1.966]
[1768215241486,3.3378075,3107.9,3107.1,1.966]
[1768215241688,0.89006536,3107.8,3107.1,1.966]
[1768215241886,0.16105,3108.5,3107.1,1.966]
[1768215242083,4.56407864,3108.4,3107.1,1.966]
[1768215242292,0.89006472,3108.3,3107.1,1.966]
[1768215242496,0.89006472,3108.2,3107.1,1.966]
[1768215242697,4.22787222,3108.2,3107.1,1.966]
[1768215242889,0.16102,3109.1,3107.5,4.31534065]
[1768215243090,0.00325417,3109.2,3107.6,3.07161835]
[1768215243291,0.33620159,3109.1,3107.7,5.187]
[1768215243490,0.00325417,3109.2,3107.7,8.25861835]
[1768215243698,0.00325417,3109.2,3107.8,3.07161835]
[1768215243896,0.00325417,3109.2,3107.8,3.23270835]
[1768215244097,0.33621551,3109.1,3107.9,1.966]
[1768215244301,0.33629019,3109.0,3107.9,1.966]
[1768215244494,0.33629019,3108.9,3107.9,1.966]
[1768215244695,1.2437223,3109.1,3107.9,1.966]
[1768215244896,3.66750805,3109.0,3108.0,1.967]
[1768215245091,0.33629836,3108.9,3108.0,1.967]
[1768215245801,0.33629836,3108.9,3108.1,1.967]
[1768215247799,0.33629836,3108.9,3107.2,3.49667826]
[1768215248098,0.33629836,3108.9,3107.4,3.33555826]
[1768215248299,0.00325417,3109.2,3107.3,6.5918423]
[1768215248300,0.00325417,3109.2,3107.6,3.33555826]
[1768215248502,0.33666287,3109.1,3107.6,3.33555826]
[1768215248691,0.00325417,3109.2,3107.6,3.33555826]
[1768215248897,0.33666153,3109.1,3107.6,3.33555826]
[1768215249097,0.00325417,3109.2,3107.6,3.49665826]
[1768215250298,0.00325417,3109.2,3107.8,3.49664826]
[1768215251506,3.07316951,3109.2,3107.8,0.16109]
[1768215251710,3.07316951,3109.2,3107.9,5.19]
[1768215253709,0.33666385,3109.1,3107.9,5.19]
[1768215253910,3.07316951,3109.2,3107.9,5.19]
[1768215254216,3.07316951,3109.2,3108.0,5.189]
[1768215254217,0.33667841,3109.1,3108.0,5.189]
[1768215254404,0.00325417,3109.2,3108.0,5.189]
[1768215254608,0.33666838,3109.1,3108.0,5.189]
[1768215254911,0.87753868,3109.0,3108.0,5.189]
[1768215255218,0.87753868,3108.9,3108.0,5.189]
[1768215255404,0.87753868,3108.8,3108.0,5.189]
[1768215255703,0.87753868,3108.7,3108.0,5.189]
[1768215255904,0.87753868,3108.6,3108.0,5.189]
[1768215256105,0.00325417,3109.2,3108.0,5.189]
[1768215256306,1.21426933,3109.1,3108.0,5.189]
[1768215256507,0.87755764,3109.0,3108.0,5.189]
[1768215256811,0.87755764,3108.9,3108.0,5.189]
[1768215257019,0.87755764,3108.8,3108.0,5.189]
[1768215257212,0.00325417,3109.2,3108.0,5.189]
[1768215257213,0.87755764,3108.7,3108.0,5.189]
[1768215257516,0.87755764,3108.6,3108.1,5.189]
[1768215257714,0.00325417,3109.2,3108.1,5.189]
[1768215257915,1.21444207,3109.1,3108.1,5.189]
[1768215258116,0.87766823,3109.0,3108.1,5.189]
[1768215258414,0.87766823,3108.9,3108.1,5.189]
[1768215258616,0.87766823,3108.8,3108.1,5.189]
[1768215258816,0.87766823,3108.7,3108.1,5.189]
[1768215259114,0.87766823,3108.6,3108.1,5.189]
[1768215259316,0.00325417,3109.2,3108.1,5.189]
[1768215259504,1.21438383,3109.1,3107.8,3.13313425]
[1768215259708,0.87762774,3109.0,3107.9,8.16404425]
[1768215259909,0.87762774,3108.9,3107.9,8.16404425]
[1768215260109,0.87762774,3108.8,3107.9,8.16404425]
[1768215260312,0.87762774,3108.7,3108.0,2.97204425]
[1768215260608,0.87762774,3108.6,3108.0,2.97204425]
[1768215260809,0.00325417,3109.2,3108.0,2.97204425]
[1768215261008,1.21436798,3109.1,3108.0,2.97204425]
[1768215261216,0.87761514,3109.0,3108.0,2.97204425]
[1768215261513,0.87761514,3108.9,3108.0,2.97204425]
[1768215261811,0.87761514,3108.8,3108.0,2.97204425]
[1768215262016,0.87761514,3108.7,3108.0,2.97204425]
[1768215262214,0.87761514,3108.6,3108.0,2.97204425]
[1768215262515,0.00325417,3109.2,3108.0,2.97204425]
[1768215262814,1.21442921,3109.1,3108.0,2.97204425]
[1768215263112,0.87766018,3109.0,3108.0,2.97204425]
[1768215263313,0.87766018,3108.9,3108.0,2.97204425]
[1768215263512,0.87766018,3108.8,3108.0,2.97204425]
[1768215263812,0.87766018,3108.7,3108.0,2.97204425]
[1768215264014,0.87766018,3108.6,3108.0,2.97204425]
[1768215264312,0.00325417,3109.2,3108.0,2.97204425]
[1768215264525,1.21458905,3109.1,3108.0,2.97204425]
[1768215264709,0.87777555,3109.0,3108.0,2.97204425]
[1768215265014,0.87777555,3108.9,3108.0,2.97204425]
[1768215265216,0.87777555,3108.8,3108.0,2.97204425]
[1768215265404,0.87777555,3108.7,3108.0,2.97204425]
[1768215265607,0.87777555,3108.6,3108.0,2.97204425]
[1768215265904,0.87777555,3108.5,3108.0,2.97204425]
[1768215266109,0.87777555,3108.4,3108.0,2.97204425]
[1768215266314,0.87777555,3108.3,3108.0,2.97204425]
[1768215266514,2.31168708,3109.1,3108.0,2.97204425]
[1768215266709,0.33689232,3109.0,3108.0,2.97204425]
[1768215267006,0.87798,3108.9,3108.0,2.97204425]
[1768215267210,0.87798,3108.8,3108.0,2.97204425]
[1768215267410,0.87798,3108.7,3108.0,2.97204425]
[1768215267611,0.00325417,3109.2,3108.0,3.13312425]
[1768215267807,0.33693329,3109.1,3108.0,3.13312425]
[1768215268107,0.00325417,3109.2,3108.0,3.13312425]
[1768215268310,0.33698007,3109.1,3108.0,3.13312425]
[1768215268512,0.00325417,3109.2,3108.0,3.13312425]
[1768215268719,0.33698025,3109.1,3108.0,3.13312425]
[1768215268918,0.00325417,3109.2,3108.0,3.13312425]
[1768215269118,0.33698013,3109.1,3108.0,3.13312425]
[1768215269421,0.00325417,3109.2,3108.0,3.13312425]
[1768215269610,0.33704269,3109.1,3108.0,3.13312425]
[1768215269812,0.00325417,3109.2,3108.0,3.13312425]
[1768215270014,0.33704257,3109.1,3108.0,3.13312425]
[1768215270221,0.00325417,3109.2,3108.0,3.13312425]
[1768215270420,0.33712235,3109.1,3108.0,3.13312425]
[1768215270622,0.00325417,3109.2,3108.0,3.13312425]
[1768215270820,0.33712235,3109.1,3108.0,3.13312425]
[1768215271120,0.00325417,3109.2,3108.0,3.13312425]
[1768215271422,0.33725188,3109.1,3108.0,3.13312425]
[1768215271618,2.31494125,3109.2,3108.0,3.13312425]
[1768215271814,0.33725187,3109.1,3108.0,3.13312425]
[1768215272117,0.00325417,3109.2,3108.2,2.97204425]
[1768215273821,0.00325417,3109.2,3108.2,3.13311425]
[1768215274022,0.00325417,3109.2,3108.4,2.97204425]
[1768215274222,2.31168708,3109.7,3108.6,2.93369883]
[1768215274421,0.33726591,3109.6,3108.8,2.93369883]
[1768215274722,2.31168708,3110.0,3108.8,2.93369883]
[1768215275022,0.33724209,3109.9,3108.8,2.93369883]
[1768215275322,0.33724209,3109.8,3108.8,2.93369883]
[1768215275521,0.33716224,3109.7,3108.8,2.93369883]
[1768215275722,0.00351607,3109.9,3108.8,2.93369883]
[1768215275917,0.33715233,3109.8,3108.8,2.93369883]
[1768215276119,0.33715233,3109.7,3108.8,2.93369883]
[1768215276317,0.00351607,3109.9,3108.8,2.93369883]
[1768215276514,0.33707005,3109.8,3108.8,2.93369883]
[1768215276821,0.00351607,3109.9,3108.9,5.2]
[1768215277022,0.00351607,3109.9,3109.0,2.93369883]
[1768215277226,0.00351607,3109.9,3109.0,2.93709237]
[1768215277411,0.00351607,3109.9,3109.1,1.24316518]
[1768215278618,0.00351607,3109.9,3109.1,4.17686401]
[1768215279021,0.00351607,3109.9,3109.1,2.93369883]
[1768215279221,0.00351607,3109.9,3109.2,5.205]
[1768215279530,0.00351607,3109.9,3109.1,2.93369883]
[1768215279722,0.86448366,3109.8,3109.2,5.206]
[1768215279923,0.00351607,3109.9,3109.2,5.206]
[1768215280124,0.86448381,3109.8,3109.2,5.206]
[1768215280327,0.00351607,3109.9,3109.3,5.207]
[1768215280529,0.86422149,3109.8,3109.3,5.207]
[1768215280720,0.00351607,3109.9,3109.3,5.207]
[1768215280927,0.86422176,3109.8,3109.3,5.207]
[1768215281124,0.00351607,3109.9,3109.3,5.207]
[1768215284634,0.86358043,3109.8,3109.3,5.207]
[1768215284837,0.00351607,3109.9,3109.3,5.207]
[1768215285038,0.86358031,3109.8,3109.3,5.207]
[1768215285237,0.00351607,3109.9,3109.3,5.207]
[1768215285439,0.86349525,3109.8,3109.3,5.207]
[1768215285633,0.00351607,3109.9,3109.3,5.207]
[1768215285836,0.86349525,3109.8,3109.3,5.207]
[1768215286038,0.00351607,3109.9,3109.3,5.207]
[1768215286233,0.86349555,3109.8,3109.3,8.14069883]
[1768215286434,0.00351607,3109.9,3109.3,8.14069883]
[1768215286638,0.86343683,3109.8,3109.3,8.14069883]
[1768215286831,0.00351607,3109.9,3109.3,8.14069883]
[1768215287042,0.86343647,3109.8,3109.3,2.93369883]
[1768215287235,0.00351607,3109.9,3109.4,2.003]
[1768215287438,0.86339561,3109.8,3109.4,2.003]
[1768215287638,0.00351607,3109.9,3109.4,2.003]
[1768215287827,0.86339537,3109.8,3109.4,2.003]
[1768215288031,0.00351607,3109.9,3109.4,2.003]
[1768215288237,0.86339569,3109.8,3109.4,2.003]
[1768215288537,0.00351607,3109.9,3109.4,2.003]
[1768215288841,0.8633871,3109.8,3109.4,4.93669883]
[1768215289040,0.00351607,3109.9,3109.4,4.93669883]
[1768215289241,0.86338686,3109.8,3109.4,4.93669883]
[1768215289539,0.00351607,3109.9,3109.4,4.93669883]
[1768215289741,0.8634025,3109.8,3109.4,4.93669883]
[1768215289929,0.00351607,3109.9,3109.4,4.93669883]
[1768215290133,0.8634025,3109.8,3109.4,4.93669883]
[1768215290333,0.00351607,3109.9,3109.4,4.93669883]
[1768215290535,0.86344047,3109.8,3109.4,4.93669883]
[1768215290835,0.00351607,3109.9,3109.5,2.93369883]
[1768215291036,0.86342858,3109.8,3109.5,2.93369883]
[1768215291237,0.00351607,3109.9,3109.5,2.93369883]
[1768215291438,0.86347442,3109.8,3109.5,2.93369883]
[1768215291741,0.00351607,3109.9,3109.5,2.93369883]
[1768215291941,0.86345532,3109.8,3109.5,2.93369883]
[1768215292138,0.00351607,3109.9,3109.4,2.003]
[1768215292438,0.86353029,3109.8,3109.4,2.003]
[1768215292743,0.00351607,3109.9,3109.4,4.93669883]
[1768215292934,0.86353029,3109.8,3109.4,4.93669883]
[1768215293132,0.00351607,3109.9,3109.4,4.93669883]
[1768215293335,0.86363471,3109.8,3109.4,4.93669883]
[1768215293536,0.00351607,3109.9,3109.4,4.93669883]
[1768215293835,1.24316518,3110.5,3109.5,5.237]
[1768215294232,1.24316518,3109.8,3109.0,0.00339354]
[1768215294632,1.24316518,3109.6,3109.1,1.775]
[1768215294838,2.94396634,3109.5,3109.1,0.33372748]
[1768215295039,1.24316518,3109.6,3109.2,1.08430253]
[1768215295238,1.24316518,3109.6,3109.3,2.017]
[1768215295444,4.18713152,3109.6,3109.4,2.017]
[1768215295635,4.18713152,3109.6,3109.4,1.774]
[1768215296141,4.18713152,3109.6,3109.3,2.017]
[1768215296739,1.24316518,3109.6,3109.3,2.02056959]
[1768215301242,1.24316518,3109.6,3109.3,0.05181519]
[1768215302145,1.24696135,3109.8,3109.3,0.05181519]
[1768215302443,0.33703193,3109.7,3109.3,0.05181519]
[1768215302638,1.24696135,3109.8,3109.3,0.05181519]
[1768215302934,0.33709536,3109.7,3109.3,0.05181519]
[1768215303140,4.19092769,3109.8,3109.3,0.05181519]
[1768215303341,0.33715333,3109.7,3109.3,0.05181519]
[1768215303542,4.19092769,3109.8,3109.3,0.05181519]
[1768215303841,0.33715339,3109.7,3109.3,0.00356959]
[1768215304038,4.19092769,3109.8,3109.3,0.00356959]
[1768215304242,0.3371472,3109.7,3109.3,0.00356959]
[1768215304444,0.33715904,3109.6,3109.1,2.014]
[1768215304744,1.24316518,3109.5,3109.1,2.014]
[1768215305450,1.24316518,3109.5,3109.1,2.01675289]
[1768215305648,0.85356988,3109.4,3109.1,0.00275289]
[1768215305850,0.85356988,3109.3,3109.1,0.00275289]
[1768215306045,0.85356988,3109.2,3109.1,0.00275289]
[1768215309243,0.85356988,3109.2,3108.3,3.09475883]
[1768215309449,0.85341166,3109.1,3108.4,2.012]
[1768215309650,1.24316518,3109.3,3108.4,2.012]
[1768215309850,0.00379617,3109.8,3108.6,1.24316518]
[1768215310050,0.33710615,3109.7,3108.6,1.24316518]
[1768215310345,0.33710615,3109.6,3108.6,1.24590182]
[1768215310542,0.00379617,3109.8,3108.6,1.24590182]
[1768215310737,0.33709422,3109.7,3108.6,1.24590182]
[1768215310942,0.33709422,3109.6,3108.6,1.24590182]
[1768215311145,0.00379617,3109.8,3108.6,1.24590182]
[1768215311342,0.33709339,3109.7,3108.6,1.24590182]
[1768215311542,0.00379617,3109.8,3108.6,1.24590182]
[1768215311543,0.33709339,3109.6,3108.6,1.24590182]
[1768215311742,0.00379617,3109.8,3108.6,1.24590182]
[1768215312051,0.33709328,3109.7,3108.6,1.24590182]
[1768215312255,0.33709328,3109.6,3108.6,1.24590182]
[1768215312556,0.00379617,3109.8,3108.6,1.24590182]
[1768215312754,0.33709769,3109.7,3108.6,1.24590182]
[1768215312952,0.33709769,3109.6,3108.6,1.24590182]
[1768215313153,1.24696135,3109.8,3108.6,1.24590182]
[1768215313353,0.33710591,3109.7,3108.6,1.24590182]
[1768215313648,1.24696135,3109.8,3108.6,1.24590182]
[1768215313850,0.3371061,3109.7,3108.6,3.77971696]
[1768215314153,0.00379617,3109.8,3109.2,1.24316518]
[1768215314354,2.31168708,3110.5,3109.3,2.011]
[1768215314558,4.7912657,3110.8,3109.6,1.24316518]
[1768215314756,2.31168708,3110.7,3109.6,1.24316518]
[1768215314953,4.7912657,3110.8,3109.6,1.24316518]
[1768215315354,4.79515537,3110.8,3109.6,1.24316518]
[1768215316760,1.24316518,3110.7,3109.6,1.24316518]
[1768215316951,1.24316518,3110.7,3109.5,3.22]
[1768215317959,1.24316518,3110.5,3109.2,1.40417518]
[1768215318151,1.24316518,3110.5,3109.6,2.009]
[1768215318855,1.24316518,3110.7,3109.6,2.009]
[1768215319562,2.48346829,3110.8,3109.6,2.009]
[1768215319762,1.24316518,3110.7,3109.6,2.009]
[1768215320860,1.24316518,3110.5,3109.7,2.008]
[1768215321661,1.24316518,3110.5,3109.8,2.008]
[1768215321856,0.84883315,3110.4,3109.8,2.008]
[1768215322054,0.84883315,3110.3,3109.8,2.008]
[1768215322255,0.84883315,3110.2,3109.8,2.008]
[1768215322456,0.84883315,3110.1,3109.8,2.008]
[1768215322664,1.24316518,3110.5,3109.8,2.008]
[1768215322864,0.84871593,3110.4,3109.8,2.008]
[1768215323162,0.84871593,3110.3,3109.8,2.008]
[1768215323365,0.84871593,3110.2,3109.8,2.008]
[1768215323568,0.84871593,3110.1,3109.8,2.008]
[1768215323761,1.24316518,3110.5,3109.8,2.008]
[1768215323963,0.84860595,3110.4,3109.2,1.40417518]
[1768215324170,0.84860595,3110.3,3109.8,2.007]
[1768215324464,0.84860595,3110.2,3109.8,2.007]
[1768215324769,1.24316518,3110.5,3109.8,2.007]
[1768215325061,0.848538,3110.4,3109.8,2.007]
[1768215325266,0.848538,3110.3,3109.8,2.007]
[1768215325467,1.24316518,3110.5,3109.8,2.007]
[1768215325468,0.848538,3110.2,3109.8,2.007]
[1768215325660,1.24316518,3110.5,3109.8,2.007]
[1768215325865,0.84844478,3110.4,3109.8,2.007]
[1768215326066,0.84844478,3110.3,3109.8,2.007]
[1768215326260,0.84844478,3110.2,3109.8,2.007]
[1768215326458,1.24316518,3110.6,3109.8,2.007]
[1768215326658,1.18235606,3110.5,3109.8,2.007]
[1768215326862,0.8483713,3110.4,3109.8,2.007]
[1768215327060,0.8483713,3110.3,3109.8,2.007]
[1768215327259,0.8483713,3110.2,3109.8,2.007]
[1768215327455,1.24316518,3110.6,3109.8,2.007]
[1768215327661,1.24316518,3110.2,3109.2,0.16101]
[1768215327862,0.84836037,3110.1,3109.3,2.006]
[1768215328062,1.24316518,3110.2,3109.4,2.006]
[1768215328265,0.8483622,3110.1,3109.4,2.006]
[1768215328465,1.24316518,3110.2,3109.4,2.006]
[1768215328664,0.84836088,3110.1,3109.4,2.006]
[1768215328866,1.24316518,3110.2,3109.4,2.006]
[1768215329069,0.84680875,3110.1,3109.4,2.006]
[1768215329270,0.84680875,3110.0,3109.4,2.006]
[1768215329472,1.24316518,3110.3,3109.4,2.006]
[1768215329772,0.84685265,3110.2,3109.4,2.006]
[1768215329971,0.84685265,3110.1,3109.4,2.006]
[1768215330170,0.84685265,3110.0,3109.4,2.006]
[1768215330363,1.24316518,3110.6,3109.5,2.009]
[1768215330566,1.18087502,3110.5,3109.5,2.009]
[1768215330769,1.18087502,3110.4,3109.5,2.009]
[1768215330970,0.84686706,3110.3,3109.5,2.009]
[1768215331169,0.84686706,3110.2,3109.5,2.009]
[1768215331370,0.84686706,3110.1,3109.5,2.009]
[1768215331659,0.84686706,3110.0,3109.5,2.009]
[1768215331864,1.24316518,3110.6,3109.5,2.009]
[1768215332078,1.18093852,3110.5,3109.5,2.009]
[1768215332279,1.18093852,3110.4,3109.6,2.01]
[1768215332474,0.8469116,3110.3,3109.6,2.01]
[1768215332674,0.8469116,3110.2,3109.6,2.01]
[1768215332886,0.8469116,3110.1,3109.6,2.01]
[1768215333185,1.24316518,3109.8,3108.7,0.16104]
[1768215333382,0.84712902,3109.7,3108.6,0.00273664]
[1768215333587,2.09031433,3109.6,3108.7,2.01]
[1768215333781,0.84714915,3109.5,3108.7,2.01]
[1768215335192,0.84714915,3109.5,3108.8,2.009]
[1768215335595,0.84714915,3109.4,3108.8,2.009]
[1768215335791,0.84714915,3109.3,3108.8,2.009]
[1768215335993,1.24316518,3109.6,3108.8,2.009]
[1768215336184,0.84719656,3109.5,3108.8,2.009]
[1768215336383,0.84719656,3109.4,3108.8,2.009]
[1768215336583,0.84719656,3109.3,3108.8,2.009]
[1768215336886,1.24316518,3109.6,3108.8,2.009]
[1768215337085,0.84716745,3109.5,3108.8,2.009]
[1768215337387,0.84716745,3109.4,3108.8,2.009]
[1768215337590,0.84716745,3109.3,3108.8,2.009]
[1768215337888,2.40265556,3109.7,3108.8,2.009]
[1768215338090,0.84714081,3109.6,3108.8,2.009]
[1768215338388,2.40265556,3109.4,3108.6,0.00273664]
[1768215338586,0.84714081,3109.3,3108.6,2.01073664]
[1768215342587,0.84714081,3109.2,3108.6,2.01073664]
[1768215342893,2.40265556,3109.8,3108.6,2.01073664]
[1768215343090,1.18064551,3109.7,3108.6,2.01073664]
[1768215343291,1.18064551,3109.6,3108.6,2.01073664]
[1768215343494,0.8467047,3109.5,3108.6,2.01073664]
[1768215343689,0.8467047,3109.4,3108.6,2.01073664]
[1768215343892,0.8467047,3109.3,3108.6,2.01073664]
[1768215344092,0.16098,3109.9,3108.6,2.01073664]
[1768215344394,1.18049179,3109.8,3108.6,2.01073664]
[1768215344593,0.84660621,3109.7,3108.6,2.01073664]
[1768215344794,0.84660621,3109.6,3108.6,4.41739469]
[1768215344997,0.84660621,3109.5,3108.6,4.41739469]
[1768215345191,2.40265556,3110.2,3108.6,4.41739469]
[1768215345390,2.40265556,3110.2,3107.2,2.56777805]
[1768215345391,3.64644785,3109.1,3107.2,2.56777805]
[1768215345591,1.24379229,3108.7,3107.3,3.22]
[1768215345792,0.84653539,3108.6,3107.2,2.56777805]
[1768215345991,0.84653539,3108.6,3107.4,2.006]
[1768215346194,2.40265556,3108.9,3107.4,2.006]
[1768215346490,0.84634516,3108.8,3107.4,2.006]
[1768215346798,0.84634516,3108.7,3107.4,2.01016582]
[1768215346998,2.40527944,3108.9,3107.4,2.01016582]
[1768215346999,0.84634516,3108.6,3107.4,2.01016582]
[1768215347200,2.40527944,3108.9,3107.4,2.01016582]
[1768215347401,0.8460035,3108.8,3107.4,2.01016582]
[1768215347697,0.8460035,3108.7,3107.4,2.01016582]
[1768215347901,2.40527944,3108.9,3107.4,0.00416582]
[1768215348106,3.58230179,3108.8,3107.4,0.00416582]
[1768215348299,2.40265556,3108.6,3107.4,0.00416582]
[1768215348600,2.40265556,3108.4,3107.4,0.00416582]
[1768215348900,0.84600294,3108.3,3107.4,0.00416582]
[1768215349102,2.40265556,3108.4,3107.4,0.00416582]
[1768215349103,0.84600294,3108.2,3107.4,0.00416582]
[1768215349302,0.84600294,3108.1,3107.4,0.00416582]
[1768215349499,2.40265556,3108.4,3107.4,0.00416582]
[1768215349701,0.8451404,3108.3,3107.4,0.00416582]
[1768215349902,0.8451404,3108.2,3107.4,0.00416582]
[1768215350101,0.8451404,3108.1,3107.4,0.00416582]
[1768215350303,2.40265556,3108.4,3107.4,0.00416582]
[1768215350501,2.40265556,3108.2,3106.3,2.40665805]
[1768215350697,0.84473706,3108.1,3106.4,4.41265805]
[1768215351503,0.84473706,3108.1,3106.4,4.41594463]
[1768215351801,0.84473706,3108.1,3106.4,2.40994463]
[1768215351996,0.84473706,3108.1,3106.5,5.227]
[1768215352997,3.24739262,3108.1,3106.6,2.005]
[1768215353197,0.84473706,3108.0,3106.6,2.005]
[1768215353394,2.40265556,3108.1,3106.6,2.005]
[1768215353612,0.84370726,3108.0,3106.6,2.005]
[1768215353810,2.40265556,3108.1,3106.6,2.005]
[1768215354011,0.84370727,3108.0,3106.6,2.005]
[1768215354310,2.40265556,3108.1,3106.6,2.005]
[1768215354808,2.40265556,3108.4,3106.7,2.56780805]
[1768215355013,0.84347377,3108.3,3106.7,2.56780805]
[1768215355210,0.84347377,3108.2,3106.7,2.56780805]
[1768215355406,0.00262388,3108.9,3106.4,0.00328658]
[1768215355407,3.2461104,3108.1,3106.4,0.00328658]
[1768215355604,2.40265556,3108.0,3106.5,2.005]
[1768215356310,2.40265556,3108.0,3106.6,2.005]
[1768215356500,2.40265556,3107.8,3106.4,0.00328658]
[1768215356812,2.40265556,3107.8,3106.4,2.00828658]
[1768215358700,2.40265556,3108.6,3106.5,2.40665805]
[1768215358906,2.40265556,3108.4,3106.5,2.40665805]
[1768215359104,3.25310636,3108.3,3106.5,2.40665805]
[1768215359312,0.8504508,3108.2,3106.5,2.40665805]
[1768215360206,0.8504508,3108.2,3106.5,2.56781805]
[1768215360409,0.8504508,3108.2,3106.4,2.00828658]
[1768215360410,0.8504508,3108.2,3106.6,2.56780805]
[1768215361613,3.25310636,3108.2,3106.6,2.56780805]
[1768215361914,0.8504508,3108.1,3106.6,2.56780805]
[1768215364014,0.8504508,3108.1,3106.7,2.01]
[1768215365418,0.8504508,3108.1,3106.7,4.53907931]
[1768215366110,0.8504508,3108.1,3106.8,2.52907931]
[1768215366320,0.8504508,3108.0,3106.8,2.52907931]
[1768215366520,2.4061196,3108.6,3107.0,2.69020931]
[1768215368218,0.33341633,3108.5,3107.0,2.69020931]
[1768215368420,2.4061196,3108.6,3107.0,0.16113]
[1768215368715,2.4061196,3108.4,3107.1,2.012]
[1768215369626,2.4061196,3108.4,3107.0,0.16113]
[1768215370022,2.4061196,3108.4,3107.1,2.012]
[1768215370925,2.4061196,3108.4,3107.2,2.011]
[1768215373330,2.4061196,3108.4,3107.0,0.16113]
[1768215373530,2.4061196,3108.4,3107.1,2.01]
[1768215373829,0.33398561,3108.3,3107.2,2.01]
[1768215374029,2.4061196,3108.4,3107.2,2.01]
[1768215374328,0.33420202,3108.3,3107.2,2.01]
[1768215374529,2.4061196,3108.4,3107.2,2.01]
[1768215374823,0.33419423,3108.3,3107.0,0.16113]
[1768215375024,2.4061196,3108.4,3107.2,2.009]
[1768215375229,2.75773177,3108.3,3107.0,0.16113]
[1768215375422,2.75773177,3108.2,3107.0,0.16113]
[1768215375722,0.33460074,3108.1,3107.0,2.17013]
[1768215377020,0.33460074,3108.1,3107.0,0.16113]
[1768215377930,2.42313103,3108.2,3107.0,0.16113]
[1768215378120,0.3348384,3108.1,3107.0,0.16113]
[1768215378320,2.42313103,3108.2,3107.0,0.16113]
[1768215378526,0.85263627,3108.1,3107.0,0.16113]
[1768215378727,0.85263627,3108.0,3107.0,0.16113]
[1768215378927,0.85263627,3107.9,3107.0,0.16113]
[1768215379127,0.85263627,3107.8,3107.0,0.16113]
[1768215379327,2.42313103,3108.6,3107.0,0.16113]
[1768215379527,1.18739935,3108.5,3107.0,0.16113]
[1768215379730,1.18739935,3108.4,3107.0,0.16113]
[1768215379929,1.18739935,3108.3,3107.0,0.16113]
[1768215380130,1.18739935,3108.2,3107.0,0.16113]
[1768215380329,0.85258194,3108.1,3107.0,0.16113]
[1768215380628,0.85258194,3108.0,3107.0,0.16113]
[1768215380823,0.85258194,3107.9,3107.0,0.16113]
[1768215381022,2.42313103,3108.6,3107.0,0.16113]
[1768215381223,1.18735097,3108.5,3107.1,0.16113]
[1768215381423,1.18735097,3108.4,3107.1,0.16113]
[1768215381624,0.85254711,3108.3,3107.1,0.16113]
[1768215381825,0.85254711,3108.2,3107.1,0.16113]
[1768215382030,0.85254711,3108.1,3107.1,0.16113]
[1768215382329,0.85254711,3108.0,3107.1,0.16113]
[1768215382526,2.42313103,3108.6,3107.1,0.16113]
[1768215382828,1.18715968,3108.5,3107.1,0.16113]
[1768215383032,0.85240347,3108.4,3107.1,0.16113]
[1768215383233,0.85240347,3108.3,3107.1,0.16113]
[1768215383530,0.85240347,3108.2,3107.1,0.16113]
[1768215383732,0.85240347,3108.1,3107.1,0.16113]
[1768215383929,0.85240347,3108.0,3107.1,0.16113]
[1768215384129,2.42313103,3108.6,3107.1,0.16113]
[1768215384331,1.18707865,3108.5,3107.1,0.16113]
[1768215384531,0.85234709,3108.4,3107.1,0.16113]
[1768215384730,0.85234709,3108.3,3107.1,0.16113]
[1768215384935,0.85234709,3108.2,3107.1,0.16113]
[1768215385227,2.42575491,3108.9,3107.2,0.16112]
[1768215385434,2.75780598,3108.8,3107.3,0.16112]
[1768215385734,2.42313103,3108.8,3107.4,0.16111]
[1768215385930,2.42313103,3108.8,3107.6,0.1611]
[1768215388230,2.42313103,3108.8,3107.7,2.005]
[1768215388530,2.42313103,3108.8,3107.6,0.1611]
[1768215388739,2.42313103,3108.8,3107.7,2.005]
[1768215389635,2.42313103,3108.8,3107.7,2.007]
[1768215390332,2.42313103,3108.8,3107.6,0.1611]
[1768215390535,2.42313103,3108.8,3107.6,2.1681]
[1768215394134,0.00262388,3108.9,3107.6,3.41245158]
[1768215394531,2.58480136,3108.9,3107.6,1.40545158]
[1768215394733,2.58480136,3108.9,3107.7,2.01]
[1768215394936,2.58480136,3108.9,3107.8,2.01]
[1768215395341,2.58480136,3108.9,3107.7,2.009]
[1768215395537,2.58217748,3108.7,3107.7,2.009]
[1768215397136,3.42960642,3108.6,3107.7,2.009]
[1768215397337,3.42960642,3108.5,3107.7,2.009]
[1768215397541,0.84742894,3108.4,3107.7,2.009]
[1768215408656,0.84742894,3108.4,3107.7,3.25348332]
[1768215408857,0.84742894,3108.3,3107.7,3.25348332]
[1768215409056,2.58480136,3108.9,3107.7,3.25348332]
[1768215409256,2.91716,3108.8,3107.7,3.25348332]
[1768215409466,0.33498252,3108.7,3107.7,3.25348332]
[1768215409663,0.33498252,3108.6,3107.7,3.25348332]
[1768215409855,0.33498252,3108.5,3107.7,3.25348332]
[1768215410060,2.58217748,3108.8,3107.7,3.25348332]
[1768215410261,2.91723422,3108.7,3107.7,2.009]
[1768215410456,2.91723422,3108.6,3107.7,2.009]
[1768215410662,0.33505674,3108.5,3107.7,2.009]
[1768215411460,0.33505674,3108.5,3107.7,3.25348332]
[1768215412370,0.33505674,3108.5,3107.9,1.24448332]
[1768215412665,4.89451328,3108.9,3107.9,1.24448332]
[1768215412866,0.33514203,3108.8,3107.9,1.24448332]
[1768215413166,0.33514203,3108.7,3107.9,1.24448332]
[1768215413359,0.33514203,3108.6,3107.9,1.24448332]
[1768215413554,0.33514203,3108.5,3107.9,1.24448332]
[1768215413757,2.58217748,3108.8,3107.9,1.24448332]
[1768215413964,0.33518001,3108.7,3107.9,1.24448332]
[1768215414165,0.33518001,3108.6,3107.9,1.24448332]
[1768215414367,0.33518001,3108.5,3107.9,1.24448332]
[1768215414666,2.58217748,3108.8,3107.9,1.24448332]
[1768215414871,0.33522878,3108.7,3107.9,1.24448332]
[1768215415062,0.33522878,3108.6,3107.4,0.16111]
[1768215415269,0.33522878,3108.5,3107.7,3.25548332]
[1768215415470,2.58217748,3108.7,3107.7,3.25548332]
[1768215415767,0.33526218,3108.6,3107.7,1.24448332]
[1768215415969,0.33526218,3108.5,3107.7,3.25448332]
[1768215416266,2.58217748,3108.7,3107.7,3.25448332]
[1768215416471,0.33526749,3108.6,3107.7,3.25448332]